fUSD/lending_fUSD_20260217
["ID","MTS","AMOUNT","RATE_DAILY","PERIOD"]
[405862192,1771368642834,-736.0,0.00010308,2]
[405862193,1771368642843,-500.0,0.00010411,2]
[405862194,1771368642854,-9999.99,0.00010475,2]
[405862195,1771368642864,-14381.39,0.00010475,2]
[405862196,1771368642874,-1401.0,0.00010475,2]
[405862197,1771368642884,-1009.2,0.00010548,2]
[405862198,1771368642894,-200.0,0.00010548,2]
[405862199,1771368642904,-500.0,0.00010548,2]
[405862200,1771368642914,-200.0,0.00010548,2]
[405862201,1771368642924,-500.0,0.00010685,2]
[405862202,1771368642934,-1009.2,0.00010822,2]
[405862203,1771368642944,-151.0,0.00010959,4]
[405862204,1771368642954,-150.0,0.00010959,2]
[405862205,1771368642964,-150.0,0.00010959,2]
[405862206,1771368642974,-9419.8,0.00010959,2]
[405862207,1771368642984,-500.0,0.00010959,2]
[405862208,1771368642996,-433.69347785,0.00011041,2]
[405862209,1771368643007,-150.0,0.00011041,2]
[405862210,1771368643017,-1009.2,0.00011096,2]
[405862211,1771368643027,-200.0,0.00011096,2]
[405862212,1771368643037,-500.0,0.00011096,2]
[405862213,1771368643047,-200.0,0.00011096,2]
[405862214,1771368643057,-49398.65267988,0.00011099,2]
[405862215,1771368643067,-49398.65267979,0.00011099,2]
[405862216,1771368643077,-49398.65267979,0.00011099,2]
[405862217,1771368643087,-64549.94771309,0.00011099,2]
[405862219,1771368643097,-64549.94771307,0.00011099,2]
[405862221,1771368643108,-64549.94771307,0.00011099,2]
[405862223,1771368643118,-1152.0,0.00011119,2]
[405862225,1771368643128,-1152.0,0.00011119,2]
[405862226,1771368643138,-4609.0,0.00011119,2]
[405862227,1771368643148,-450.0,0.00011145,7]
[405862228,1771368643158,-64549.94771307,0.00011197,2]
[405862229,1771368643168,-500.0,0.00011233,2]
[405862230,1771368643178,-1000.0,0.00011301,2]
[405862231,1771368643187,-1252.0,0.00011338,2]
[405862232,1771368643197,-1009.2,0.0001137,2]
[405862233,1771368643208,-500.0,0.00011507,2]
[405862234,1771368643218,-468.51,0.00011515,2]
[405862235,1771368643228,-173.355935,0.00011622,2]
[405862236,1771368643239,-1009.2,0.00011644,2]
[405862237,1771368643248,-218.04759767,0.00011644,2]
[405862238,1771368643259,-500.0,0.00011644,2]
[405862239,1771368643271,-200.0,0.00011644,2]
[405862240,1771368643281,-161.074023,0.00011647,2]
[405862241,1771368643291,-500.0,0.00011781,2]
[405862242,1771368643301,-15776.0821349,0.00011886,2]
[405862243,1771368643325,-292.43601662,0.00011886,2]
[405862248,1771368643497,-33330.13452827,0.00011886,2]
[405862249,1771368643507,-1009.2,0.00011918,2]
[405862250,1771368643517,-500.0,0.00012055,2]
[405862251,1771368643528,-10000.0,0.00012073,2]
[405862252,1771368643537,-500.0,0.00012173,2]
[405862253,1771368643548,-164.61380668,0.00012173,2]
[405862254,1771368643558,-500.0,0.00012173,2]
[405862255,1771368643568,-500.0,0.00012173,2]
[405862256,1771368643578,-500.0,0.00012173,2]
[405862257,1771368643589,-500.0,0.00012173,2]
[405862258,1771368643599,-500.0,0.00012173,2]
[405862259,1771368643610,-500.0,0.00012173,2]
[405862260,1771368643621,-160.37289206,0.00012173,2]
[405862261,1771368643632,-500.0,0.00012173,2]
[405862262,1771368643642,-545.77855618,0.00012173,2]
[405862263,1771368643653,-500.0,0.00012173,2]
[405862264,1771368643663,-500.0,0.00012173,2]
[405862265,1771368643673,-500.0,0.00012173,2]
[405862266,1771368643684,-500.0,0.00012173,2]
[405862267,1771368643694,-500.0,0.00012173,2]
[405862270,1771368644026,-500.0,0.00012173,2]
[405862271,1771368644036,-500.0,0.00012173,2]
[405862272,1771368644046,-500.0,0.00012173,2]
[405862273,1771368644056,-500.0,0.00012173,2]
[405862274,1771368644066,-160.1837527,0.00012173,2]
[405862275,1771368644076,-500.0,0.00012173,2]
[405862276,1771368644086,-500.0,0.00012173,2]
[405862277,1771368644095,-500.62727143,0.00012173,2]
[405862278,1771368644106,-500.0,0.00012173,2]
[405862279,1771368644116,-218.33608313,0.00012173,2]
[405862280,1771368644126,-500.0,0.00012173,2]
[405862281,1771368644135,-500.0,0.00012173,2]
[405862282,1771368644146,-500.0,0.00012173,2]
[405862283,1771368644155,-500.0,0.00012173,2]
[405862284,1771368644166,-166.78412047,0.00012173,2]
[405862285,1771368644176,-500.0,0.00012173,2]
[405862286,1771368644185,-500.0,0.00012173,2]
[405862287,1771368644194,-500.0,0.00012173,2]
[405862288,1771368644204,-500.0,0.00012173,2]
[405862289,1771368644214,-1009.2,0.00012192,2]
[405862290,1771368644224,-500.0,0.00012192,2]
[405862291,1771368644234,-200.0,0.00012192,2]
[405862292,1771368644243,-327.96973244,0.000122,2]
[405862293,1771368644253,-1613.0,0.0001223,2]
[405862294,1771368644263,-6453.0,0.0001223,2]
[405862295,1771368644273,-1613.0,0.0001223,2]
[405862296,1771368644283,-64549.94771307,0.00012314,2]
[405862297,1771368644293,-500.0,0.00012329,2]
[405862298,1771368644303,-1000.0,0.00012329,2]
[405862299,1771368644314,-1009.2,0.00012466,2]
[405862300,1771368644324,-2129.0,0.00012476,2]
[405862301,1771368644334,-150.0,0.00012501,2]
[405862302,1771368644345,-500.0,0.00012501,2]
[405862303,1771368644355,-500.0,0.00012501,2]
[405862304,1771368644364,-150.0,0.00012501,2]
[405862305,1771368644374,-150.0,0.00012556,2]
[405862306,1771368644385,-500.0,0.00012556,2]
[405862307,1771368644394,-500.0,0.00012556,2]
[405862308,1771368644404,-150.0,0.00012556,2]
[405862309,1771368644414,-500.0,0.00012603,2]
[405862310,1771368644423,-150.0,0.00012611,2]
[405862311,1771368644433,-500.0,0.00012611,2]
[405862312,1771368644443,-500.0,0.00012611,2]
[405862313,1771368644452,-242.84628954,0.00012611,2]
[405862314,1771368644462,-1066.36814865,0.0001262,2]
[405862315,1771368644472,-255.55,0.00012656,2]
[405862316,1771368644482,-250.53819001,0.00012665,2]
[405862317,1771368644492,-500.0,0.00012665,2]
[405862318,1771368644501,-500.0,0.00012665,2]
[405862319,1771368644511,-355.76,0.000127,2]
[405862320,1771368644521,-500.0,0.0001272,2]
[405862321,1771368644530,-500.0,0.0001272,2]
[405862322,1771368644540,-1000.0,0.00012721,2]
[405862323,1771368644549,-571.65229745,0.00012721,2]
[405862324,1771368644559,-228.57891647,0.00012721,2]
[405862325,1771368644568,-1002.81524174,0.00012721,2]
[405862326,1771368644578,-1013.94571317,0.00012721,2]
[405862327,1771368644587,-509.22256369,0.00012721,2]
[405862328,1771368644597,-500.0,0.00012721,2]
[405862329,1771368644606,-1000.0,0.00012721,2]
[405862330,1771368644616,-1000.0,0.00012721,2]
[405862331,1771368644625,-1000.0,0.00012721,2]
[405862332,1771368644635,-544.40507509,0.00012721,2]
[405862333,1771368644644,-1000.0,0.00012721,2]
[405862334,1771368644654,-1000.0,0.00012721,2]
[405862335,1771368644663,-1000.0,0.00012721,2]
[405862336,1771368644673,-1000.0,0.00012721,2]
[405862337,1771368644683,-1000.0,0.00012721,2]
[405862338,1771368644693,-1000.0,0.00012721,2]
[405862339,1771368644703,-928.11420057,0.00012721,2]
[405862340,1771368644713,-615.3930462,0.00012721,2]
[405862341,1771368644723,-1000.0,0.00012721,2]
[405862342,1771368644733,-1000.0,0.00012721,2]
[405862343,1771368644742,-1000.0,0.00012721,2]
[405862344,1771368644755,-1000.0,0.00012721,2]
[405862345,1771368644764,-1000.0,0.00012721,2]
[405862346,1771368644774,-1000.0,0.00012721,2]
[405862347,1771368644785,-1071.24633497,0.00012721,2]
[405862348,1771368644795,-951.6545,0.0001273,2]
[405862349,1771368644805,-4587.476,0.0001273,2]
[405862350,1771368644814,-1009.2,0.0001274,2]
[405862351,1771368644824,-500.0,0.0001274,2]
[405862352,1771368644834,-200.0,0.0001274,2]
[405862353,1771368644844,-500.0,0.00012775,2]
[405862354,1771368644853,-500.0,0.00012775,2]
[405862355,1771368644862,-996.0200937,0.00012781,2]
[405862356,1771368644871,-214297.0,0.000128,2]
[405862357,1771368644880,-500.0,0.0001283,2]
[405862358,1771368644890,-500.0,0.0001283,2]
[405862359,1771368644900,-500.0,0.00012877,2]
[405862360,1771368644909,-500.0,0.00012885,2]
[405862361,1771368644919,-500.0,0.00012885,2]
[405862362,1771368644928,-49398.65267979,0.00012888,2]
[405862363,1771368644938,-500.0,0.00012939,2]
[405862364,1771368644947,-153.2248447,0.00012939,2]
[405862365,1771368644957,-215.37,0.00012947,2]
[405862366,1771368644966,-500.0,0.00012994,2]
[405862367,1771368644976,-1009.20002581,0.00013014,2]
[405862368,1771368644985,-500.0,0.00013049,2]
[405862369,1771368644994,-163.51122534,0.00013104,2]
[405862370,1771368645004,-500.0,0.00013151,2]
[405862371,1771368645014,-744.95097778,0.00013268,2]
[405862372,1771368645024,-1500.0,0.00013268,2]
[405862373,1771368645033,-1500.0,0.00013268,2]
[405862374,1771368645042,-623.71743587,0.00013268,2]
[405862375,1771368645052,-806.86059886,0.00013268,2]
[405862376,1771368645061,-1513.76878479,0.00013268,2]
[405862377,1771368645071,-616.56100589,0.00013268,2]
[405862378,1771368645080,-1500.0,0.00013268,2]
[405862379,1771368645090,-1500.0,0.00013268,2]
[405862380,1771368645100,-1500.0,0.00013268,2]
[405862381,1771368645110,-1500.0,0.00013268,2]
[405862382,1771368645120,-1500.0,0.00013268,2]
[405862383,1771368645130,-1000.0,0.00013268,2]
[405862384,1771368645140,-1500.0,0.00013268,2]
[405862385,1771368645149,-1500.0,0.00013268,2]
[405862386,1771368645159,-344.71223806,0.00013268,2]
[405862387,1771368645169,-500.0,0.00013288,2]
[405862388,1771368645178,-200.0,0.00013288,2]
[405862389,1771368645188,-5530.0,0.000133,3]
[405862390,1771368645198,-3240.0,0.00013425,2]
[405862391,1771368645208,-500.0,0.00013425,2]
[405862392,1771368645217,-64549.94771307,0.00013431,2]
[405862393,1771368645227,-151.0,0.00013452,4]
[405862394,1771368645236,-1834.0,0.00013453,2]
[405862395,1771368645246,-9035.0,0.00013453,2]
[405862396,1771368645255,-2258.0,0.00013453,2]
[405862397,1771368645265,-1066.36814864,0.000135,2]
[405862398,1771368645274,-160.0,0.00013622,2]
[405862399,1771368645284,-173.57638878,0.00013622,2]
[405862400,1771368645295,-546.97,0.00013698,2]
[405862401,1771368645305,-546.97,0.00013698,2]
[405862402,1771368645315,-546.97,0.00013698,2]
[405862403,1771368645324,-546.97,0.00013698,2]
[405862404,1771368645335,-546.97,0.00013698,2]
[405862405,1771368645344,-546.97,0.00013698,2]
[405862406,1771368645354,-546.97,0.00013698,2]
[405862407,1771368645364,-546.97,0.00013698,2]
[405862408,1771368645374,-546.97,0.00013698,2]
[405862409,1771368645383,-546.97,0.00013698,2]
[405862410,1771368645393,-546.97,0.00013698,2]
[405862411,1771368645403,-546.97,0.00013698,2]
[405862412,1771368645413,-546.97,0.00013698,2]
[405862413,1771368645423,-546.97,0.00013698,2]
[405862414,1771368645432,-546.97,0.00013698,2]
[405862415,1771368645442,-546.97,0.00013698,2]
[405862416,1771368645451,-546.97,0.00013698,2]
[405862417,1771368645461,-546.97,0.00013698,2]
[405862418,1771368645471,-546.97,0.00013698,2]
[405862419,1771368645481,-546.97,0.00013698,2]
[405862420,1771368645491,-546.97,0.00013698,2]
[405862421,1771368645501,-546.97,0.00013698,2]
[405862422,1771368645511,-546.97,0.00013698,2]
[405862423,1771368645522,-547.09394166,0.00013698,2]
[405862424,1771368645532,-500.0,0.00013698,2]
[405862425,1771368645542,-500.0,0.00013698,2]
[405862426,1771368645551,-500.0,0.00013698,2]
[405862427,1771368645561,-500.0,0.00013698,2]
[405862428,1771368645571,-500.0,0.00013698,2]
[405862429,1771368645580,-500.0,0.00013698,2]
[405862430,1771368645590,-500.0,0.00013698,2]
[405862431,1771368645601,-500.0,0.00013698,2]
[405862432,1771368645610,-500.0,0.00013698,2]
[405862433,1771368645620,-500.0,0.00013698,2]
[405862434,1771368645630,-500.0,0.00013698,2]
[405862435,1771368645641,-500.0,0.00013698,2]
[405862436,1771368645650,-500.0,0.00013698,2]
[405862437,1771368645660,-500.0,0.00013698,2]
[405862438,1771368645670,-500.0,0.00013698,2]
[405862439,1771368645679,-500.0,0.00013698,2]
[405862440,1771368645690,-500.0,0.00013698,2]
[405862441,1771368645699,-500.0,0.00013698,2]
[405862442,1771368645709,-500.0,0.00013698,2]
[405862443,1771368645719,-500.0,0.00013698,2]
[405862444,1771368645728,-500.0,0.00013698,2]
[405862445,1771368645738,-500.0,0.00013698,2]
[405862446,1771368645748,-383.99953744,0.00013698,2]
[405862447,1771368645760,-500.0,0.00013698,2]
[405862448,1771368645770,-500.0,0.00013698,2]
[405862449,1771368645779,-500.0,0.00013698,2]
[405862450,1771368645791,-500.0,0.00013698,2]
[405862451,1771368645800,-500.0,0.00013698,2]
[405862452,1771368645810,-500.0,0.00013698,2]
[405862453,1771368645819,-500.0,0.00013698,2]
[405862454,1771368645832,-500.0,0.00013698,2]
[405862455,1771368645842,-500.0,0.00013698,2]
[405862456,1771368645851,-500.0,0.00013698,2]
[405862457,1771368645861,-500.0,0.00013698,2]
[405862458,1771368645871,-600.82615766,0.00013698,2]
[405862459,1771368645882,-1479.1,0.00013698,2]
[405862460,1771368645892,-1479.1,0.00013698,2]
[405862463,1771368645902,-1479.1,0.00013698,2]
[405862465,1771368645911,-1479.1,0.00013698,2]
[405862467,1771368645921,-1479.1,0.00013698,2]
[405862469,1771368645931,-1479.1,0.00013698,2]
[405862471,1771368645940,-1479.1,0.00013698,2]
[405862473,1771368645950,-1479.1,0.00013698,2]
[405862475,1771368645960,-1479.1,0.00013698,2]
[405862477,1771368645969,-1479.1,0.00013698,2]
[405862478,1771368645978,-1479.1,0.00013698,2]
[405862479,1771368645988,-1479.1,0.00013698,2]
[405862480,1771368645998,-1479.1,0.00013698,2]
[405862481,1771368646008,-1479.1,0.00013698,2]
[405862482,1771368646017,-1479.1,0.00013698,2]
[405862483,1771368646027,-1479.1,0.00013698,2]
[405862484,1771368646036,-1479.1,0.00013698,2]
[405862485,1771368646046,-1479.1,0.00013698,2]
[405862486,1771368646056,-1479.1,0.00013698,2]
[405862487,1771368646065,-1479.1,0.00013698,2]
[405862488,1771368646075,-1479.1,0.00013698,2]
[405862489,1771368646085,-1479.1,0.00013698,2]
[405862490,1771368646095,-1479.1,0.00013698,2]
[405862491,1771368646104,-1479.19350963,0.00013698,2]
[405862492,1771368646113,-2052.7,0.00013698,2]
[405862493,1771368646124,-2052.7,0.00013698,2]
[405862494,1771368646134,-2052.7,0.00013698,2]
[405862495,1771368646143,-2052.7,0.00013698,2]
[405862496,1771368646152,-2052.7,0.00013698,2]
[405862497,1771368646162,-2052.7,0.00013698,2]
[405862498,1771368646171,-2052.7,0.00013698,2]
[405862499,1771368646180,-2052.7,0.00013698,2]
[405862500,1771368646190,-2052.7,0.00013698,2]
[405862501,1771368646200,-2052.7,0.00013698,2]
[405862502,1771368646210,-2052.7,0.00013698,2]
[405862503,1771368646221,-2052.7,0.00013698,2]
[405862504,1771368646235,-2052.7,0.00013698,2]
[405862505,1771368646244,-2052.7,0.00013698,2]
[405862506,1771368646254,-2052.7,0.00013698,2]
[405862507,1771368646263,-2052.7,0.00013698,2]
[405862508,1771368646273,-500.0,0.00013698,2]
[405862509,1771368646282,-2052.7,0.00013698,2]
[405862510,1771368646292,-500.0,0.00013698,2]
[405862511,1771368646301,-2052.7,0.00013698,2]
[405862512,1771368646311,-500.0,0.00013698,2]
[405862513,1771368646321,-2052.7,0.00013698,2]
[405862514,1771368646330,-500.0,0.00013698,2]
[405862515,1771368646340,-2052.7,0.00013698,2]
[405862516,1771368646349,-500.0,0.00013698,2]
[405862517,1771368646358,-2052.7,0.00013698,2]
[405862518,1771368646367,-500.0,0.00013698,2]
[405862519,1771368646377,-2052.7,0.00013698,2]
[405862521,1771368646479,-500.0,0.00013698,2]
[405862522,1771368646489,-2052.7,0.00013698,2]
[405862523,1771368646500,-500.0,0.00013698,2]
[405862524,1771368646510,-2052.77678348,0.00013698,2]
[405862525,1771368646519,-500.0,0.00013698,2]
[405862526,1771368646529,-500.0,0.00013698,2]
[405862527,1771368646539,-500.0,0.00013698,2]
[405862528,1771368646548,-500.0,0.00013698,2]
[405862529,1771368646558,-200.92210999,0.00013698,2]
[405862530,1771368646567,-1546.47,0.00013698,2]
[405862531,1771368646578,-1546.47,0.00013698,2]
[405862532,1771368646588,-1546.47,0.00013698,2]
[405862533,1771368646597,-1546.47,0.00013698,2]
[405862534,1771368646607,-1546.47,0.00013698,2]
[405862535,1771368646616,-1546.47,0.00013698,2]
[405862536,1771368646626,-1546.47,0.00013698,2]
[405862537,1771368646635,-1546.47,0.00013698,2]
[405862538,1771368646644,-1546.47,0.00013698,2]
[405862539,1771368646653,-1546.47,0.00013698,2]
[405862540,1771368646663,-1546.47,0.00013698,2]
[405862541,1771368646672,-1546.47,0.00013698,2]
[405862542,1771368646682,-1546.47,0.00013698,2]
[405862543,1771368646692,-1546.47,0.00013698,2]
[405862544,1771368646701,-1546.47,0.00013698,2]
[405862545,1771368646711,-1546.47,0.00013698,2]
[405862546,1771368646720,-1546.47,0.00013698,2]
[405862547,1771368646730,-1546.47,0.00013698,2]
[405862548,1771368646740,-1546.47,0.00013698,2]
[405862549,1771368646750,-1546.47,0.00013698,2]
[405862550,1771368646762,-1546.47,0.00013698,2]
[405862551,1771368646772,-1546.47,0.00013698,2]
[405862552,1771368646781,-1546.47,0.00013698,2]
[405862553,1771368646791,-1546.51311819,0.00013698,2]
[405862554,1771368646801,-500.0,0.00013698,2]
[405862555,1771368646811,-500.0,0.00013698,2]
[405862556,1771368646821,-500.0,0.00013698,2]
[405862557,1771368646831,-500.0,0.00013698,2]
[405862558,1771368646841,-500.0,0.00013698,2]
[405862559,1771368646851,-516.5,0.00013698,2]
[405862560,1771368646860,-494.24526323,0.00013698,2]
[405862561,1771368646869,-516.5,0.00013698,2]
[405862562,1771368646879,-516.5,0.00013698,2]
[405862563,1771368646888,-516.5,0.00013698,2]
[405862564,1771368646898,-516.5,0.00013698,2]
[405862565,1771368646908,-516.5,0.00013698,2]
[405862566,1771368646917,-516.5,0.00013698,2]
[405862567,1771368646926,-516.5,0.00013698,2]
[405862568,1771368646936,-516.5,0.00013698,2]
[405862569,1771368646948,-516.5,0.00013698,2]
[405862570,1771368646957,-516.5,0.00013698,2]
[405862571,1771368646966,-516.5,0.00013698,2]
[405862572,1771368646975,-516.5,0.00013698,2]
[405862573,1771368646985,-516.5,0.00013698,2]
[405862574,1771368646994,-516.5,0.00013698,2]
[405862575,1771368647004,-516.5,0.00013698,2]
[405862576,1771368647014,-516.5,0.00013698,2]
[405862577,1771368647023,-516.5,0.00013698,2]
[405862578,1771368647033,-516.5,0.00013698,2]
[405862579,1771368647042,-516.5,0.00013698,2]
[405862580,1771368647051,-516.5,0.00013698,2]
[405862581,1771368647061,-516.5,0.00013698,2]
[405862582,1771368647071,-516.5,0.00013698,2]
[405862583,1771368647079,-516.63,0.00013698,2]
[405862584,1771368647089,-500.0,0.00013698,2]
[405862585,1771368647098,-500.0,0.00013698,2]
[405862586,1771368647108,-500.0,0.00013698,2]
[405862587,1771368647117,-191.17661539,0.00013698,2]
[405862588,1771368647126,-500.0,0.00013698,2]
[405862589,1771368647135,-500.0,0.00013698,2]
[405862590,1771368647145,-500.0,0.00013698,2]
[405862591,1771368647154,-500.0,0.00013698,2]
[405862592,1771368647164,-500.0,0.00013698,2]
[405862593,1771368647173,-500.0,0.00013698,2]
[405862594,1771368647183,-500.0,0.00013698,2]
[405862595,1771368647192,-500.0,0.00013698,2]
[405862596,1771368647201,-500.0,0.00013698,2]
[405862597,1771368647210,-500.0,0.00013698,2]
[405862598,1771368647220,-500.0,0.00013698,2]
[405862599,1771368647229,-500.0,0.00013698,2]
[405862600,1771368647238,-500.0,0.00013698,2]
[405862601,1771368647247,-500.0,0.00013698,2]
[405862602,1771368647257,-500.0,0.00013698,2]
[405862603,1771368647267,-307.56,0.00013698,2]
[405862604,1771368647282,-500.0,0.00013698,2]
[405862605,1771368647292,-500.0,0.00013698,2]
[405862606,1771368647302,-500.0,0.00013698,2]
[405862607,1771368647313,-505.58518338,0.00013698,2]
[405862608,1771368647322,-500.0,0.00013698,2]
[405862609,1771368647332,-500.0,0.00013698,2]
[405862610,1771368647342,-500.0,0.00013698,2]
[405862611,1771368647352,-500.0,0.00013698,2]
[405862612,1771368647361,-500.0,0.00013698,2]
[405862613,1771368647371,-474.03942024,0.00013698,2]
[405862614,1771368647381,-172.09485914,0.00013698,2]
[405862615,1771368647391,-528.4390448,0.00013698,2]
[405862616,1771368647401,-649.58,0.00013698,2]
[405862617,1771368647410,-649.58,0.00013698,2]
[405862618,1771368647420,-649.58,0.00013698,2]
[405862619,1771368647429,-649.58,0.00013698,2]
[405862620,1771368647439,-649.58,0.00013698,2]
[405862621,1771368647450,-1180.75,0.00013698,2]
[405862622,1771368647460,-1180.75,0.00013698,2]
[405862623,1771368647470,-1180.75,0.00013698,2]
[405862624,1771368647480,-1180.75,0.00013698,2]
[405862625,1771368647490,-1180.75,0.00013698,2]
[405862626,1771368647499,-500.0,0.00013698,2]
[405862627,1771368647510,-500.0,0.00013698,2]
[405862628,1771368647520,-500.0,0.00013698,2]
[405862629,1771368647530,-500.0,0.00013698,2]
[405862630,1771368647539,-586.00467181,0.00013698,2]
[405862631,1771368647549,-500.0,0.00013698,2]
[405862632,1771368647559,-500.0,0.00013698,2]
[405862633,1771368647569,-500.0,0.00013698,2]
[405862634,1771368647579,-500.0,0.00013698,2]
[405862635,1771368647589,-500.0,0.00013698,2]
[405862636,1771368647599,-321.35543779,0.00013698,2]
[405862637,1771368647609,-500.0,0.00013698,2]
[405862638,1771368647619,-500.0,0.00013698,2]
[405862639,1771368647629,-213.96435398,0.00013698,2]
[405862640,1771368647639,-1013.23,0.00013698,2]
[405862641,1771368647654,-1013.23,0.00013698,2]
[405862642,1771368647664,-1013.23,0.00013698,2]
[405862643,1771368647674,-1013.23,0.00013698,2]
[405862644,1771368647684,-1013.23,0.00013698,2]
[405862645,1771368647694,-500.0,0.00013698,2]
[405862646,1771368647704,-536.56841648,0.00013698,2]
[405862647,1771368647714,-4559.05,0.00013699,2]
[405862648,1771368647724,-712.99,0.00013699,2]
[405862649,1771368647734,-500.0,0.00013699,2]
[405862650,1771368647744,-655.93946488,0.000137,2]
[405862651,1771368647758,-3620.0,0.00013723,2]
[405862652,1771368647767,-468.51,0.00013777,2]
[405862653,1771368647778,-5530.0,0.000138,5]
[405862654,1771368647787,-503.8182606,0.00013816,2]
[405862655,1771368647798,-2000.0,0.00013816,2]
[405862656,1771368647808,-2000.0,0.00013816,2]
[405862657,1771368647819,-2000.0,0.00013816,2]
[405862658,1771368647831,-2000.0,0.00013816,2]
[405862659,1771368647842,-226.6191256,0.00013816,2]
[405862660,1771368647851,-2000.0,0.00013816,2]
[405862661,1771368647861,-2000.0,0.00013816,2]
[405862662,1771368647871,-2000.0,0.00013816,2]
[405862663,1771368647882,-200.0,0.00013836,2]
[405862664,1771368647892,-1013.23,0.00013872,2]
[405862665,1771368647902,-500.0,0.00013873,2]
[405862666,1771368647912,-500.0,0.00013873,2]
[405862667,1771368647922,-500.0,0.00013873,2]
[405862668,1771368647932,-335.00019172,0.00013873,2]
[405862669,1771368647942,-500.0,0.00013873,2]
[405862670,1771368647952,-500.0,0.00013873,2]
[405862671,1771368647962,-500.0,0.00013873,2]
[405862672,1771368647971,-500.0,0.00013873,2]
[405862673,1771368647981,-500.0,0.00013873,2]
[405862674,1771368647991,-500.0,0.00013873,2]
[405862675,1771368648001,-500.0,0.00013873,2]
[405862676,1771368648015,-500.0,0.00013873,2]
[405862677,1771368648026,-500.29634492,0.00013873,2]
[405862678,1771368648036,-500.0,0.00013873,2]
[405862679,1771368648047,-500.0,0.00013873,2]
[405862680,1771368648057,-500.0,0.00013873,2]
[405862681,1771368648067,-500.0,0.00013873,2]
[405862682,1771368648078,-500.0,0.00013873,2]
[405862683,1771368648089,-163.87964352,0.00013873,2]
[405862684,1771368648099,-523.64780308,0.00013873,2]
[405862685,1771368648109,-500.93096914,0.00013873,2]
[405862686,1771368648119,-561.11210647,0.00013873,2]
[405862687,1771368648129,-500.0,0.00013873,2]
[405862688,1771368648140,-436.04334629,0.00013873,2]
[405862689,1771368648151,-500.0,0.00013873,2]
[405862690,1771368648162,-162.40112722,0.00013873,2]
[405862691,1771368648171,-500.0,0.00013873,2]
[405862692,1771368648181,-161.87499248,0.00013873,2]
[405862693,1771368648191,-525.66819458,0.00013873,2]
[405862694,1771368648201,-505.14943602,0.00013873,2]
[405862695,1771368648211,-503.17452108,0.00013873,2]
[405862696,1771368648221,-500.0,0.00013873,2]
[405862697,1771368648231,-500.0,0.00013873,2]
[405862698,1771368648241,-500.0,0.00013873,2]
[405862699,1771368648251,-160.29464371,0.00013873,2]
[405862700,1771368648262,-500.0,0.00013873,2]
[405862701,1771368648272,-500.0,0.00013873,2]
[405862702,1771368648283,-500.0,0.00013873,2]
[405862703,1771368648293,-500.0,0.00013873,2]
[405862704,1771368648305,-500.0,0.00013873,2]
[405862705,1771368648317,-161.95965132,0.00013873,2]
[405862706,1771368648329,-500.0,0.00013873,2]
[405862707,1771368648343,-500.0,0.00013873,2]
[405862708,1771368648355,-501.23450591,0.00013873,2]
[405862709,1771368648371,-500.0,0.00013873,2]
[405862710,1771368648384,-500.0,0.00013873,2]
[405862711,1771368648397,-500.0,0.00013873,2]